bitfinex-derivatives/quotes_ETHF0:USTF0_20250220
["timestamp","ask_amount","ask_price","bid_price","bid_amount"]
[1740044551787,0.73266,2729.7,2729.6,0.5864]
[1740044552493,0.73272,2729.5,2729.4,0.581]
[1740044552989,0.5512,2729.8,2729.4,0.581]
[1740044553180,0.73271,2729.6,2729.4,1.31373]
[1740044554591,0.73271,2729.6,2729.4,1.31372]
[1740044554789,0.73271,2729.6,2729.4,0.581]
[1740044554990,0.73271,2729.6,2729.5,0.73272]
[1740044555288,0.73272,2729.5,2729.4,0.581]
[1740044555793,0.73272,2729.5,2729.4,1.31374]
[1740044556096,0.73272,2729.5,2729.4,0.581]
[1740044557089,0.73272,2729.5,2729.4,1.31374]
[1740044557691,0.73272,2729.5,2729.4,0.581]
[1740044562802,0.5512,2729.8,2729.4,0.581]
[1740044562999,0.7327,2729.6,2729.5,0.73271]
[1740044563396,0.7327,2729.6,2729.4,0.581]
[1740044563706,0.7327,2729.6,2729.5,0.73272]
[1740044564203,0.7327,2729.6,2729.4,1.31373]
[1740044564397,0.5512,2729.8,2729.4,1.31373]
[1740044564600,0.73272,2729.5,2729.4,1.31373]
[1740044564794,0.5512,2729.8,2729.4,1.31373]
[1740044564995,0.73271,2729.6,2729.4,1.31373]
[1740044565598,0.5512,2729.8,2729.4,1.31373]
[1740044565800,0.73272,2729.5,2729.4,1.31373]
[1740044567106,0.73272,2729.6,2729.5,0.73271]
[1740044568904,0.73272,2729.5,2729.4,4.52154]
[1740044569209,0.7327,2729.6,2729.5,0.73271]
[1740044571705,0.73264,2729.8,2729.7,0.73263]
[1740044574104,0.5864,2729.9,2729.7,0.73263]
[1740044574299,0.5864,2729.9,2729.4,3.7888]
[1740044574500,0.5864,2729.9,2729.5,0.07327349]
[1740044574701,0.5864,2729.9,2729.8,0.73263]
[1740044575806,0.5864,2729.9,2729.8,1.27173]
[1740044579910,3.2078,2730.1,2729.8,2.8711]
[1740044580118,0.005493,2730.4,2730.3,0.7325]
[1740044580413,0.005493,2730.4,2730.3,47.0743]
[1740044582312,0.005493,2730.4,2730.3,47.14755202]
[1740044593623,0.5884,2730.8,2730.7,0.73239]
[1740044593824,0.5884,2730.8,2730.7,3.07039]
[1740044594325,5.2788,2731.4,2731.3,0.73223]
[1740044594515,3.7519,2731.4,2731.2,0.73225]
[1740044594827,0.73225,2731.3,2731.2,0.73225]
[1740044595621,1.83685,2731.3,2731.2,0.73225]
[1740044596524,1.1046,2731.3,2731.2,0.73225]
[1740044598127,1.83683,2731.3,2731.1,0.737753]
[1740044598523,1.1046,2731.3,2731.2,0.73226]
[1740044599027,1.83683,2731.3,2731.1,0.737763]
[1740044599424,1.83685,2731.3,2731.1,0.737763]
[1740044599630,0.73226,2731.2,2731.1,0.005493]
[1740044599924,0.73226,2731.2,2731.1,0.737783]
[1740044600129,1.1046,2731.3,2731.1,0.737783]
[1740044600331,1.1046,2731.3,2731.1,0.005493]
[1740044600630,1.1046,2731.3,2731.2,0.73226]
[1740044601026,1.1046,2731.3,2731.2,45.27626]
[1740044602638,0.5441,2731.4,2731.3,0.73223]
[1740044603334,0.5441,2731.4,2731.3,41.53223]
[1740044603738,0.5441,2731.4,2731.3,41.6054552]
[1740044604026,0.73578818,2731.6,2731.3,41.4346252]
[1740044604229,1.29027818,2731.6,2731.5,0.73218]
[1740044604431,0.55812818,2731.6,2731.5,0.73218]
[1740044604733,0.55812818,2731.6,2731.5,3.06718]
[1740044604934,0.55812818,2731.6,2731.5,3.14039984]
[1740044605233,0.55812818,2731.6,2731.5,43.94039984]
[1740044605630,0.00362818,2731.6,2731.5,47.14819984]
[1740044612239,0.00362818,2731.6,2731.5,44.81319984]
[1740044612536,1.87117818,2731.6,2731.5,0.07321984]
[1740044613042,1.87117818,2731.6,2731.5,40.87321984]
[1740044614943,1.13902818,2731.6,2731.5,40.87321984]
[1740044615137,1.13902818,2731.6,2731.5,41.60539984]
[1740044615441,0.56422818,2731.6,2731.5,41.60539984]
[1740044615642,0.56422818,2731.6,2731.5,42.18259984]
[1740044616340,1.29637818,2731.6,2731.5,40.87321984]
[1740044620356,0.56422818,2731.6,2731.5,40.87321984]
[1740044620649,0.56422818,2731.6,2731.5,41.60539984]
[1740044623851,1.29637818,2731.6,2731.5,41.60539984]
[1740044625258,1.29637818,2731.6,2731.5,40.87321984]
[1740044625453,1.29637818,2731.6,2731.5,0.07321984]
[1740044627458,1.29637818,2731.6,2731.1,0.005493]
[1740044627459,0.73226,2731.2,2731.1,0.005493]
[1740044628358,0.73225,2731.3,2731.1,0.005493]
[1740044628559,0.73226,2731.2,2731.1,0.005493]
[1740044631558,1.27136,2731.2,2731.1,0.005493]
[1740044635655,0.73226,2731.2,2731.1,0.005493]
[1740044645172,0.5681,2731.4,2731.1,0.005493]
[1740044645472,0.73226,2731.2,2731.1,0.737773]
[1740044646271,0.73226,2731.2,2731.1,0.005493]
[1740044648574,1.28926,2731.2,2731.1,0.005493]
[1740044650163,4.49706,2731.2,2731.1,0.005493]
[1740044663482,4.49706,2731.2,2730.6,4.917]
[1740044663483,0.73239,2730.7,2730.6,1.7092]
[1740044663779,0.73239,2730.7,2730.6,0.5836]
[1740044667884,3.7804,2731.1,2730.6,0.5836]
[1740044668088,0.73239,2730.7,2730.6,0.5836]
[1740044677891,3.7752,2730.9,2730.4,0.005493]
[1740044678093,0.73245,2730.5,2730.4,0.005493]
[1740044679095,1.31695,2730.5,2730.4,0.005493]
[1740044687509,4.52475,2730.5,2730.4,0.005493]
[1740044688504,1.31695,2730.5,2730.4,0.005493]
[1740044688808,4.52475,2730.5,2730.4,0.005493]
[1740044694417,1.31695,2730.5,2730.4,0.005493]
[1740044694619,4.52475,2730.5,2730.4,0.005493]
[1740044695523,1.31695,2730.5,2730.4,0.005493]
[1740044695818,4.52475,2730.5,2730.4,0.005493]
[1740044704424,1.31695,2730.5,2730.4,0.005493]
[1740044704621,4.52475,2730.5,2730.4,0.005493]
[1740044711329,1.31695,2730.5,2730.4,0.005493]
[1740044711532,4.52475,2730.5,2730.4,0.005493]
[1740044712939,1.83125,2730.4,2728.3,3.666]
[1740044713123,0.7329,2728.8,2728.7,0.5915]
[1740044715132,3.213293,2729.0,2728.5,0.566493]
[1740044715332,3.94076,2728.6,2728.5,0.566493]
[1740044716032,3.2078,2728.9,2728.5,0.566493]
[1740044716234,3.2078,2728.9,2728.5,3.774293]
[1740044716431,3.94076,2728.6,2728.5,0.005493]
[1740044720530,3.2078,2728.9,2728.5,0.005493]
[1740044720730,3.94069,2728.9,2728.5,0.005493]
[1740044720929,3.94069,2728.9,2728.5,0.575893]
[1740044721125,0.005493,2729.0,2728.6,42.08063]
[1740044721325,0.7329,2728.9,2728.6,44.5555]
[1740044721733,0.7329,2728.9,2728.6,3.7555]
[1740044721934,0.005493,2729.0,2728.6,3.7555]
[1740044722141,0.005493,2729.0,2728.9,0.73288]
[1740044722435,0.005493,2729.0,2728.9,3.2078]
[1740044725337,0.005493,2729.0,2728.5,0.005493]
[1740044725338,0.73296,2728.6,2728.5,0.005493]
[1740044726738,3.213293,2729.0,2728.5,0.005493]
[1740044727236,0.005493,2729.0,2728.6,3.2078]
[1740044727438,0.73293,2728.7,2728.6,3.2078]
[1740044731249,0.73296,2728.6,2728.5,0.005493]
[1740044731842,0.005493,2729.0,2728.5,3.213293]
[1740044732145,0.73292,2728.8,2728.5,3.946263]
[1740044732640,0.005493,2729.0,2728.5,3.213293]
[1740044732941,0.73296,2728.6,2728.5,0.005493]
[1740044734644,3.2078,2728.9,2728.5,0.005493]
[1740044734941,0.73292,2728.8,2728.5,0.738463]
[1740044735137,3.2078,2728.9,2728.5,0.738463]
[1740044735333,3.2078,2728.9,2728.5,0.005493]
[1740044735537,0.73294,2728.7,2728.5,0.005493]
[1740044736640,0.73293,2728.7,2728.5,0.738473]
[1740044736946,0.73293,2728.7,2728.5,0.005493]
[1740044740146,0.73296,2728.6,2728.5,0.005493]
[1740044753456,0.73296,2728.6,2728.5,0.738473]
[1740044753656,0.73296,2728.6,2728.5,0.005493]
[1740044755663,0.73296,2728.6,2728.5,0.738473]
[1740044755864,0.73296,2728.6,2728.5,0.005493]
[1740044756062,0.005493,2729.0,2728.5,0.005493]
[1740044756258,0.7329,2728.8,2728.7,3.2078]
[1740044757264,0.572,2728.9,2728.7,3.94073]
[1740044757465,1.30488,2728.9,2728.7,3.94073]
[1740044757653,1.30488,2728.9,2728.8,0.7329]
[1740044758858,1.30488,2728.9,2728.7,4.51691]
[1740044759062,1.30488,2728.9,2728.7,5.06171]
[1740044759261,1.30488,2728.9,2728.8,0.7329]
[1740044759869,0.572,2728.9,2728.8,0.7329]
[1740044760066,1.30488,2728.9,2728.8,0.7329]
[1740044761269,0.005493,2729.0,2728.7,4.3288]
[1740044761575,0.005493,2729.0,2728.9,0.73288]
[1740044766769,0.005493,2729.0,2728.9,3.94068]
[1740044771874,0.005493,2729.0,2728.9,3.2078]
[1740044772073,0.73289,2728.9,2728.8,0.73288]
[1740044772273,2.35739,2728.9,2728.8,0.73288]
[1740044774175,1.6245,2728.9,2728.8,0.73288]
[1740044774776,0.005493,2729.0,2728.9,0.73288]
[1740044775273,0.738343,2729.0,2728.8,0.73288]
[1740044775469,0.005493,2729.0,2728.8,0.73288]
[1740044775670,1.32648,2728.9,2728.8,0.73288]
[1740044776072,0.5936,2728.9,2728.8,0.73288]
[1740044777666,0.5936,2728.9,2728.7,3.489]
[1740044777871,0.5936,2728.9,2728.8,0.7329]
[1740044779685,1.32649,2728.9,2728.7,4.22191]
[1740044779876,0.5936,2728.9,2728.7,4.22191]
[1740044780079,1.32648,2728.9,2728.8,0.7329]
[1740044780370,1.32648,2728.9,2728.7,3.489]
[1740044780371,1.32648,2728.9,2728.7,4.22191]
[1740044781975,0.73293,2728.7,2728.6,3.7651]
[1740044782176,0.73296,2728.6,2728.5,0.005493]
[1740044782378,1.32496,2728.6,2728.5,0.005493]
[1740044785583,0.592,2728.6,2728.5,0.005493]
[1740044785784,0.592,2728.6,2728.5,0.738473]
[1740044786081,1.32422,2728.8,2728.5,0.005493]
[1740044786280,2.6646,2728.9,2728.5,0.005493]
[1740044786482,3.39749,2728.9,2728.6,0.73295]
[1740044786681,3.39749,2728.9,2728.7,1.6432]
[1740044786878,2.6646,2728.9,2728.8,0.7329]
[1740044787080,0.5936,2728.9,2728.8,0.7329]
[1740044787382,0.738343,2729.0,2728.8,0.7329]
[1740044787586,0.005493,2729.0,2728.9,0.73288]
[1740044787786,0.005493,2729.0,2728.9,6.30768]
[1740044788090,0.73296,2728.6,2728.5,0.005493]
[1740044789487,0.5924,2728.8,2728.5,0.005493]
[1740044789688,0.005493,2729.0,2728.8,0.73289]
[1740044789891,0.005493,2729.0,2728.9,3.7686]
[1740044791287,0.005493,2729.0,2728.9,4.50148]
[1740044795679,0.738343,2729.0,2728.9,3.7686]
[1740044795879,0.73296,2728.6,2728.5,4.810373]
[1740044796080,0.73296,2728.6,2728.5,7.765273]
[1740044796279,0.73295,2728.7,2728.5,7.765273]
[1740044796890,0.5888,2728.8,2728.5,7.032293]
[1740044797085,1.32172,2728.8,2728.6,0.73294]
[1740044797281,0.5888,2728.8,2728.6,0.73294]
[1740044797488,1.32172,2728.8,2728.6,0.73294]
[1740044797689,1.32172,2728.8,2728.5,7.032293]
[1740044797891,1.32172,2728.8,2728.7,0.73293]
[1740044798389,0.73293,2728.7,2728.6,0.73294]
[1740044799186,0.5888,2728.8,2728.5,7.032293]
[1740044799486,1.32172,2728.8,2728.6,0.73296]
[1740044799691,0.5888,2728.8,2728.5,2.980493]
[1740044799992,3.2078,2728.6,2727.7,3.94099]
[1740044800194,0.73313,2728.0,2727.8,0.5559]
[1740044800787,0.73309,2728.1,2727.9,0.5384]
[1740044800993,0.73312,2728.0,2727.9,0.5384]
[1740044801392,0.73311,2728.1,2727.9,0.5384]
[1740044801694,0.73309,2728.2,2727.9,1.27154]
[1740044801994,0.73309,2728.1,2727.9,0.5384]
[1740044802290,1.122,2728.4,2727.9,0.5384]
[1740044802592,0.73309,2728.1,2727.9,0.5384]
[1740044802888,3.2078,2728.3,2727.8,0.5559]
[1740044803091,3.2078,2728.3,2727.7,0.005493]
[1740044803286,0.73317,2727.8,2727.7,0.005493]
[1740044803486,0.73315,2727.9,2727.7,0.005493]
[1740044803894,0.73317,2727.8,2727.7,0.005493]
[1740044810802,4.458,2728.2,2727.7,3.213293]
[1740044811100,0.73317,2727.8,2727.7,3.213293]
[1740044812002,0.73313,2728.0,2727.9,0.73314]
[1740044812197,0.73316,2727.9,2727.7,3.213293]
[1740044812398,0.73313,2728.0,2727.8,1.29895]
[1740044812598,0.73315,2727.9,2727.8,0.5658]
[1740044813105,0.73315,2727.9,2727.8,1.29897]
[1740044814004,0.73314,2728.0,2727.9,0.73314]
[1740044814201,0.73315,2727.9,2727.8,1.29895]
[1740044814397,0.73313,2728.0,2727.9,0.73314]
[1740044815303,2.071,2728.2,2727.8,0.5658]
[1740044815502,0.73314,2728.0,2727.9,0.73312]
[1740044817208,0.73314,2728.0,2727.9,0.73315]
[1740044817406,2.95457,2728.4,2727.7,5.598293]
[1740044817708,0.73316,2727.9,2727.8,0.73317]
[1740044822309,0.73315,2728.0,2727.9,0.73313]
[1740044823005,0.73316,2727.9,2727.8,0.73315]
[1740044825115,1.8326,2728.3,2727.7,5.598293]
[1740044825509,0.73313,2728.0,2727.9,0.73312]
[1740044828718,0.73312,2728.1,2728.0,0.7331]
[1740044828918,0.73312,2728.1,2728.0,3.9409]
[1740044829715,0.73312,2728.1,2728.0,3.2078]
[1740044829915,0.73312,2728.1,2728.0,3.94092]
[1740044830319,0.73312,2728.1,2728.0,3.2078]
[1740044830824,0.73312,2728.1,2728.0,3.94092]
[1740044831123,1.122,2728.4,2728.0,3.2078]
[1740044831312,0.5442,2728.4,2728.3,0.73304]
[1740044831923,1.27721,2728.4,2728.3,1.29874]
[1740044832129,0.73304,2728.3,2728.2,2.373]
[1740044832322,1.30794,2728.3,2728.2,2.373]
[1740044834129,0.73304,2728.3,2728.2,3.10606]
[1740044834427,3.2078,2728.6,2728.2,2.373]
[1740044834631,0.5912,2728.7,2728.4,3.2078]
[1740044834830,0.5912,2728.7,2728.6,0.73296]
[1740044835032,0.73291,2728.8,2728.6,0.73296]
[1740044835426,4.8898,2728.9,2728.6,0.73296]
[1740044835626,0.73293,2728.7,2728.6,0.73296]
[1740044836332,4.8898,2728.9,2728.6,0.73296]
[1740044836531,0.73292,2728.8,2728.6,0.73296]
[1740044837327,5.62269,2728.9,2728.7,0.73292]
[1740044837627,4.53189,2728.9,2728.7,0.73292]
[1740044837831,3.799,2728.9,2728.8,1.2809]
[1740044838536,3.2078,2728.9,2728.8,1.2809]
[1740044839429,0.005493,2729.0,2728.9,0.73288]
[1740044839936,0.005493,2729.0,2728.9,1.88938]
[1740044841336,0.005493,2729.0,2728.9,1.1565]
[1740044841538,0.738343,2729.0,2728.9,1.88938]
[1740044842035,0.005493,2729.0,2728.9,1.88938]
[1740044842937,0.738343,2729.0,2728.9,1.88938]
[1740044843138,0.005493,2729.0,2728.9,1.88938]
[1740044849834,0.738343,2729.0,2728.9,1.88938]
[1740044850028,0.738343,2729.0,2728.9,0.5843]
[1740044850228,0.005493,2729.0,2728.6,2.367]
[1740044850442,0.73293,2728.7,2728.6,2.367]
[1740044851032,0.73293,2728.7,2728.5,1.81657]
[1740044851231,0.5678,2728.6,2728.5,4.18357]
[1740044852941,0.73293,2728.8,2728.5,3.4506]
[1740044853140,0.73293,2728.8,2728.6,1.27414]
[1740044853331,0.7329,2728.8,2728.7,0.73293]
[1740044853535,0.5678,2728.9,2728.8,0.7329]
[1740044853731,0.738363,2729.0,2728.8,0.7329]
[1740044854041,0.738363,2729.0,2728.9,0.5459]
[1740044855037,0.005493,2729.0,2728.9,0.5459]
[1740044855233,0.738343,2729.0,2728.9,0.5459]
[1740044855440,0.005493,2729.0,2728.9,0.5459]
[1740044855643,0.005493,2729.0,2728.9,1.27878]
[1740044856239,0.738343,2729.0,2728.9,1.27878]
[1740044856447,0.738343,2729.0,2728.9,0.5459]
[1740044865744,0.738343,2729.0,2728.9,1.27878]
[1740044881551,0.738343,2729.0,2728.9,0.5459]
[1740044882346,0.738343,2729.0,2728.9,1.27878]
[1740044883059,0.005493,2729.0,2728.8,3.2078]
[1740044883257,0.73288,2728.9,2728.8,3.94068]
[1740044884259,0.005493,2729.0,2728.7,0.5673]
[1740044884452,0.005493,2729.0,2728.2,3.2078]
[1740044884655,0.73306,2728.3,2728.2,3.7714]
[1740044885461,1.1215,2728.5,2728.2,3.7714]
[1740044885661,3.2078,2728.9,2728.3,0.5453]
[1740044885863,1.7062,2728.8,2728.4,0.539]
[1740044886060,0.73297,2728.6,2728.4,1.272]
[1740044886963,1.7062,2728.8,2728.4,0.539]
[1740044887156,0.73298,2728.5,2728.4,0.539]
[1740044888165,0.73298,2728.5,2728.4,1.27201]
[1740044888366,0.73297,2728.6,2728.4,1.27201]
[1740044889471,1.7062,2728.8,2728.4,0.539]
[1740044889761,1.7062,2728.8,2728.5,2.355]
[1740044889968,1.7062,2728.8,2728.6,0.5508]
[1740044890263,0.73293,2728.7,2728.6,0.5508]
[1740044894178,1.7062,2728.8,2728.4,0.539]
[1740044894373,1.7062,2728.8,2728.2,3.2078]
[1740044894675,0.73304,2728.3,2728.2,3.2078]
[1740044900781,0.73304,2728.3,2728.2,3.94086]
[1740044900981,0.73304,2728.3,2728.2,3.2078]
[1740044901281,0.73304,2728.3,2728.2,3.94086]
[1740044901681,0.73304,2728.3,2728.2,3.2078]
[1740044902479,0.73304,2728.3,2728.2,3.94086]
[1740044906986,1.7062,2728.8,2728.2,3.2078]
[1740044907284,0.73301,2728.5,2728.4,0.733]
[1740044907485,0.73301,2728.5,2728.4,1.3132]
[1740044908287,1.7062,2728.8,2728.4,0.5802]
[1740044908679,0.73298,2728.5,2728.4,1.3132]
[1740044908986,0.73298,2728.5,2728.4,1.8866]
[1740044912985,0.73298,2728.5,2728.4,5.0944]
[1740044913685,0.73298,2728.6,2728.5,0.73297]
[1740044913879,1.31761,2728.8,2728.7,0.73293]
[1740044914181,0.005493,2729.0,2728.9,0.73288]
[1740044914588,3.94056,2729.4,2728.9,2.351]
[1740044914778,3.2078,2729.4,2728.9,2.351]
[1740044915175,0.5509,2729.7,2729.1,3.2078]
[1740044915387,0.73277,2729.3,2729.2,1.0954]
[1740044915587,0.73277,2729.3,2729.2,1.6455]
[1740044915780,0.73277,2729.3,2729.2,2.3783]
[1740044916086,0.73277,2729.3,2729.2,1.6455]
[1740044917879,1.29267,2729.3,2729.2,1.6455]
[1740044928491,1.29267,2729.3,2729.2,2.3783]
[1740044928883,1.29267,2729.3,2729.2,1.6455]
[1740044929688,0.005493,2729.5,2729.2,1.6455]
[1740044929893,0.73277,2729.3,2729.2,2.37828]
[1740044931893,0.73277,2729.3,2729.2,2.3783]
[1740044934986,0.73277,2729.3,2729.2,1.6455]
[1740044935185,0.73277,2729.3,2729.2,2.3783]
[1740044940697,0.73277,2729.3,2729.2,1.6455]
[1740044941094,0.73277,2729.3,2729.2,0.5501]
[1740044942391,0.005493,2729.5,2729.0,3.213293]
[1740044942592,0.73282,2729.1,2729.0,0.005493]
[1740044943100,1.83216,2729.0,2728.3,2.8936]
[1740044943298,0.733,2728.5,2728.3,2.8936]
[1740044943499,0.5421,2728.4,2728.3,2.8936]
[1740044943698,0.5421,2728.4,2728.3,3.62664]
[1740044944002,0.73295,2728.7,2728.4,0.733]
[1740044944593,0.5421,2728.9,2728.5,1.1484]
[1740044944799,0.5421,2728.9,2728.6,0.73295]
[1740044945102,0.73291,2728.8,2728.6,0.73295]
[1740044945301,0.73291,2728.8,2728.7,0.5357]
[1740044945495,1.27499,2728.9,2728.7,1.26863]
[1740044946396,0.5421,2728.9,2728.7,0.5357]
[1740044946704,0.7329,2728.8,2728.7,0.5357]
[1740044947908,1.27499,2728.9,2728.7,0.5357]
[1740044948299,1.275,2728.9,2728.7,0.5357]
[1740044949304,1.275,2728.9,2728.7,1.26863]
[1740044950701,0.7329,2728.8,2728.7,1.26863]
[1740044950902,1.27499,2728.9,2728.7,1.26863]
[1740044951505,0.5421,2728.9,2728.7,0.5357]
[1740044951708,1.27499,2728.9,2728.7,1.26862]
[1740044953199,0.5421,2728.9,2728.7,0.5357]
[1740044953401,1.275,2728.9,2728.7,1.26862]
[1740044953697,1.275,2728.9,2728.7,3.60862]
[1740044953900,0.7329,2728.8,2728.7,3.60862]
[1740044955103,1.27499,2728.9,2728.7,3.60862]
[1740044956106,0.7329,2728.8,2728.7,3.60862]
[1740044957812,1.27499,2728.9,2728.7,3.60862]
[1740044958512,0.7329,2728.8,2728.7,3.60862]
[1740044959915,0.5421,2728.9,2728.7,3.60862]
[1740044959916,0.73289,2728.9,2728.8,0.73289]
[1740044960113,0.5365,2729.1,2728.7,2.8757]
[1740044960114,0.5646,2729.0,2728.7,2.8757]
[1740044960314,0.73288,2728.9,2728.7,3.60861]
[1740044961514,0.73288,2728.9,2728.8,0.7329]
[1740044962216,0.73288,2728.9,2728.7,3.60861]
[1740044962419,0.73288,2728.9,2728.8,0.7329]
[1740044962615,0.5646,2729.0,2728.7,2.8757]
[1740044962815,1.29746,2729.0,2728.9,0.73288]
[1740044963511,0.5646,2729.0,2728.9,0.73288]
[1740044963716,0.5668,2729.2,2728.7,2.8757]
[1740044963909,0.73286,2729.0,2728.9,0.73286]
[1740044964114,0.73284,2729.1,2729.0,0.73284]
[1740044967122,0.73284,2729.1,2728.9,1.105]
[1740044967322,0.73284,2729.1,2728.9,1.83786]
[1740044967524,0.73284,2729.1,2728.9,1.105]
[1740044967916,0.73282,2729.1,2728.9,1.83786]
[1740044968223,0.73283,2729.1,2729.0,0.73284]
[1740044969321,0.73283,2729.1,2728.9,1.105]
[1740044969517,0.73283,2729.1,2728.9,1.83786]
[1740044970810,1.1563,2729.2,2728.9,1.105]
[1740044971210,0.73282,2729.1,2729.0,0.73283]
[1740044971815,0.73285,2729.0,2728.9,1.105]
[1740044972024,1.1563,2729.2,2728.9,1.105]
[1740044972325,0.73285,2729.1,2729.0,0.73284]
[1740044974423,1.1563,2729.2,2728.9,1.105]
[1740044974723,0.73285,2729.0,2728.9,1.83786]
[1740044978425,0.73285,2729.0,2728.9,1.105]
[1740044978624,0.73285,2729.0,2728.9,0.73288]
[1740044979130,1.1563,2729.2,2728.7,0.07329497]
[1740044979326,1.90438,2728.9,2728.8,2.332]
[1740044979927,0.7329,2728.8,2728.7,0.07329497]
[1740044980125,1.2703,2728.8,2728.7,0.07329497]
[1740044980325,0.73304,2728.3,2728.2,2.332]
[1740044980730,3.2078,2728.6,2728.1,3.213293]
[1740044980934,0.73306,2728.2,2728.1,0.005493]
[1740045000237,2.071,2728.2,2727.8,0.589]
[1740045000430,0.7332,2727.7,2727.6,0.5858]
[1740045005143,0.005493,2727.9,2727.6,0.5858]
[1740045005345,0.7332,2727.7,2727.6,0.5858]
[1740045007647,0.73318,2727.8,2727.7,0.73318]
[1740045007946,0.73318,2727.8,2727.6,1.31901]
[1740045008149,0.7332,2727.7,2727.6,0.5858]
[1740045008341,0.005493,2727.9,2727.6,1.31901]
[1740045008536,0.005493,2727.9,2727.6,0.5858]
[1740045008748,0.7332,2727.7,2727.6,0.5858]
[1740045011457,0.005493,2727.9,2727.6,1.31903]
[1740045011656,0.7331,2728.1,2728.0,0.73311]
[1740045011863,2.071,2728.2,2727.8,3.2078]
[1740045012056,0.73313,2728.0,2727.9,1.1447]
[1740045012748,2.071,2728.2,2728.1,0.73309]
[1740045012951,2.076493,2728.2,2728.0,1.29929]
[1740045013151,0.73309,2728.1,2728.0,0.5662]
[1740045014553,0.73312,2728.0,2727.9,3.4777]
[1740045016963,1.132393,2728.2,2727.5,0.5662]
[1740045017264,0.7332,2727.7,2727.6,0.5549]
[1740045027171,0.73323,2727.6,2727.5,1.1289]
[1740045028168,0.73325,2727.5,2727.4,7.73912765]
[1740045028369,1.29405,2727.5,2727.4,7.73912765]
[1740045034073,0.5608,2727.5,2727.4,7.73912765]
[1740045034871,1.1269,2727.8,2727.6,0.7332]
[1740045035074,1.7028,2727.8,2727.4,7.00585765]
[1740045035675,0.73322,2727.7,2727.6,0.73322]
[1740045036677,0.7332,2727.7,2727.4,7.00585765]
[1740045036975,0.7332,2727.7,2727.6,0.73323]
[1740045037478,0.73316,2727.9,2727.8,0.73316]
[1740045037774,1.30452,2728.0,2727.9,0.73315]
[1740045037966,0.73316,2727.9,2727.8,0.73315]
[1740045038272,1.30453,2728.0,2727.9,0.73315]
[1740045038878,3.2078,2728.1,2728.0,0.73312]
[1740045039172,3.94089,2728.1,2728.0,0.73312]
[1740045039367,3.2078,2728.1,2728.0,0.73312]
[1740045039568,0.738563,2728.2,2728.0,0.73312]
[1740045039774,0.738563,2728.2,2728.1,1.85969]
[1740045040370,0.005493,2728.2,2728.1,1.85969]
[1740045042385,0.005493,2728.2,2728.1,1.1266]
[1740045042577,0.005493,2728.2,2728.1,1.85969]
[1740045043784,0.738553,2728.2,2728.1,1.1266]
[1740045044381,0.738553,2728.2,2728.0,0.7331]
[1740045045884,0.7331,2728.1,2727.9,3.06513]
[1740045046079,0.7331,2728.1,2728.0,0.73312]
[1740045046281,0.738573,2728.2,2728.0,0.73312]
[1740045048381,0.738573,2728.2,2728.1,0.73309]
[1740045048986,0.738573,2728.2,2728.0,1.3118]
[1740045050886,0.005493,2728.2,2728.0,1.3118]
[1740045051182,0.005493,2728.2,2727.8,5.5398]
[1740045051183,0.73315,2727.9,2727.8,5.5398]
[1740045051586,0.73315,2727.9,2727.8,3.2078]
[1740045052078,0.73321,2727.7,2727.5,7.2401]
[1740045053086,0.7332,2727.8,2727.6,0.73322]
[1740045053782,0.5596,2727.9,2727.5,3.2078]
[1740045053984,0.73325,2727.5,2727.4,0.005493]
[1740045054389,2.42945,2727.5,2727.4,0.005493]
[1740045058084,1.86265,2727.5,2727.4,0.005493]
[1740045058784,0.5441,2727.5,2727.4,0.738773]
[1740045059091,0.73324,2727.6,2727.4,0.005493]
[1740045059388,0.5858,2727.7,2727.4,0.543893]
[1740045059593,0.73325,2727.5,2727.4,0.543893]
[1740045062688,3.7903,2727.9,2727.5,0.73324]
[1740045062993,0.73322,2727.7,2727.5,0.73324]
[1740045064189,0.565,2727.8,2727.5,0.73324]
[1740045064597,0.73323,2727.6,2727.5,0.73324]
[1740045066799,0.7332,2727.7,2727.6,0.73322]
[1740045067703,0.565,2727.8,2727.4,0.543893]
[1740045067897,0.73323,2727.6,2727.5,0.73323]
[1740045068096,0.73323,2727.6,2727.5,3.06623]
[1740045069801,0.73323,2727.6,2727.5,2.333]
[1740045070302,0.73323,2727.6,2727.5,3.06625]
[1740045095621,0.73323,2727.6,2727.5,2.333]
[1740045095821,0.73323,2727.6,2727.5,3.06625]
[1740045096532,0.73325,2727.5,2727.4,0.543893]
[1740045096725,1.32465,2727.5,2727.4,0.005493]
[1740045097919,4.53245,2727.5,2727.4,0.005493]
[1740045098431,0.73341,2726.9,2726.8,3.7876]
[1740045098627,0.73341,2726.9,2726.8,3.2078]
[1740045100230,1.149,2727.1,2726.6,0.548093]
[1740045100432,0.73343,2726.9,2726.6,1.281583]
[1740045100628,0.5689,2726.8,2726.6,1.281583]
[1740045101231,0.5773,2726.7,2726.6,1.281583]
[1740045104636,1.30507,2727.1,2726.6,0.548093]
[1740045104826,0.5353,2727.0,2726.6,0.548093]
[1740045105027,1.26869,2727.0,2726.8,0.73342]
[1740045105222,1.26869,2727.0,2726.9,40.8]
[1740045105829,1.26869,2727.0,2726.8,0.73342]
[1740045106139,1.2687,2727.0,2726.8,0.73342]
[1740045106438,0.73345,2726.8,2726.6,1.281573]
[1740045106935,0.73343,2726.9,2726.7,0.73346]